Cogmind - Beta 16 @@@ ROGUE MODE // 2025.10.26 @ 13:13:47 Player: KeKe Result: Destroyed by G-34 Mercenary with Small Laser Performance ------------- Evolutions (0) 0 Regions Visited (2) 400 Robots Destroyed (29) 145 Value Destroyed (660) 660 Prototype IDs (13) 260 Alien Tech Used (0) 0 Bonus (-118) -118 TOTAL SCORE: 1347 Bonus ------- Friendly Fire -118 Cogmind --------- Core Integrity 0/250 Matter 241/300 Energy 100/100 System Corruption 0% Temperature Cool (6) Movement Rolling (125) Ox3 Location -10/Subcaves Parts ------- > --- POWER (1) -------- Subdweller Power Source > --- PROPULSION (2) --- Wheel > --- UTILITY (2) ------ Large Storage Unit Structural Scanner > --- WEAPON (2) ------- Subdweller Machine Gun Light Cannon > --- INVENTORY (15) --- Wheel Subdweller Monowheel Improved Terrain Scanner Hacking Suite Tractor Beam Improved EM Shotgun Powered Cannon Subdweller Shrapnel Launcher Mining Laser Peak State ------------ > --- POWER ------------ Light Ion Engine > --- PROPULSION ------- Wheel Compact Wheel > --- UTILITY ---------- Small Storage Unit Targeting Computer > --- WEAPON ----------- Improved EM Shotgun Improved EM Shotgun > --- INVENTORY -------- Wheel Wheel Improved Terrain Scanner Tractor Beam Improved EM Shotgun Improved EM Shotgun Mining Laser [Rating: 12] Favorites ----------- Power Light Ion Engine Engine Light Ion Engine Propulsion Wheel Leg Aluminum Leg Wheel Wheel Utility Large Storage Unit Device Structural Scanner Storage Large Storage Unit Processor Targeting Computer Weapon Improved EM Shotgun Energy Gun Improved EM Shotgun Ballistic Gun Subdweller Machine Gun Ballistic Cannon Light Cannon Special Weapon Mining Laser Build | -11 -10 -10 ------- Run | Yrd Mat Sub Slots Evolved . | . . . Power . | . . . Propulsion . | . . . Utility . | . . . Weapon . | . . . Parts Attached 19 | 2 9 8 Power 2 | . 1 1 Engine 2 | . 1 1 Core . | . . . Reactor . | . . . Propulsion 7 | 2 3 2 Treads . | . . . Leg . | . . . Wheel 7 | 2 3 2 Hover . | . . . Flight . | . . . Utility 3 | . 2 1 Device 1 | . . 1 Storage 1 | . 1 . Processor 1 | . 1 . Hackware . | . . . Protection . | . . . Artifact . | . . . Weapon 7 | . 3 4 Energy Gun 4 | . 3 1 Energy Cannon . | . . . Ballistic Gun 1 | . . 1 Ballistic Cannon 1 | . . 1 Launcher . | . . . Special Weapon 1 | . . 1 Impact Weapon . | . . . Slashing Weapon . | . . . Piercing Weapon . | . . . Special Melee Weapon . | . . . Unidentified Prototypes 1 | . 1 . Parts Lost 9 | . 5 4 Power 2 | . 2 . Propulsion 4 | . 2 2 Utility . | . . . Weapon 3 | . 1 2 Highest Loss Streak 2 | . 2 2 To Critical Strikes . | . . . Average Backups 6 | 4 7 7 Power . | 1 . . Propulsion 1 | 1 1 1 Utility 2 | 1 2 3 Weapon 2 | 1 2 3 Tool/Special . | . . . Unused Backups 10 | 2 2 6 Power . | . . . Propulsion 3 | 2 . 1 Utility 5 | . 2 3 Weapon 2 | . . 2 Tool/Special . | . . . Average Slot Usage (%) 93 | . 93 93 Engine 10 | . 11 9 Wheel 27 | . 27 27 Device 7 | . . 13 Storage 14 | . 14 14 Processor 4 | . 10 . Energy Gun 13 | . 24 3 Ballistic Gun 7 | . 3 11 Ballistic Cannon 5 | . . 10 Peak Build Rating 12 | 6 12 12 Average Rating 9 | 5 10 10 On Entrance 7 | 6 6 11 Avg Prop Armor Cover (%) . | . . . Naked Turns . | . . . Heaviest Build 33 | 12 29 33 Greatest Support 26 | 26 26 20 Greatest Overweight (x) 1 | . 1 1 Average Overweight (x) . | . . 1 Largest Inventory Capacity 15 | 8 15 15 Average Capacity 12 | 8 11 15 Most Carried 10 | 7 9 10 Average Carried 7 | 4 7 7 Final Capacity 15 | 8 15 15 Final Carried 10 | 7 8 10 Class Distribution -------------------- 96% | Mutant 3% | Scavenger-Mutant Dominant Class ---------------- Mutant | -10/Materials Mutant | -10/Subcaves Resources | -11 -10 -10 ----------- Run | Yrd Mat Sub Matter Collected 524 | 258 134 132 Remotely . | . . . Salvage Created 936 | 185 536 215 Parts 54 | 11 34 9 Haulers Intercepted . | . . . Recyclers Shooed 1 | 1 . . Parts Field Recycled . | . . . Retrieved Matter . | . . . Parts Self-Destructed 5 | . . 5 Prevented . | . . . Parts Restored . | . . . Kills | -11 -10 -10 ------- Run | Yrd Mat Sub Combat Hostiles Destroyed 18 | . 12 6 Guns 11 | . 9 2 Cannons 4 | . . 4 AOE 2 | . 2 . Classes Destroyed 10 | 3 4 3 Worker 1 | 1 . . Builder 3 | . 3 . Tunneler 5 | 4 1 . Recycler 1 | 1 . . Operator 1 | . 1 . Swarmer 4 | . 3 1 Grunt 9 | . 9 . Sentry 1 | . . 1 Subdweller 4 | . . 4 Scientist 1 | . . 1 Best Kill Streak 4 | 2 4 2 Combat Bots Only 3 | . 3 2 Max Kills in Single Turn 2 | 1 2 1 Gunslinging . | . . . Exploded 1 | . 1 . Melee . | . . . Uniques/NPCs Destroyed . | . . . Combat | -11 -10 -10 -------- Run | Yrd Mat Sub Hostile Shots Fired 91 | . 43 48 Missed 28 | . 11 17 Hits 63 | . 32 31 Projectile 63 | . 32 31 Critical Strikes 3 | . 1 2 Damage Taken 1042 | . 491 551 Core 252 | . 80 172 Absorbed by Shields . | . . . Core Remaining (%) 100 | 100 . . Volleys Fired 87 | 22 30 35 Largest 2 | 2 2 2 Hottest 100 | 70 90 100 Shots Fired 157 | 44 60 53 Gun 131 | 44 60 27 Cannon 21 | . . 21 Launcher . | . . . Special 5 | . . 5 Kinetic 71 | 22 12 37 Thermal 39 | 22 12 5 Explosive . | . . . Electromagnetic 47 | . 36 11 Robot Hit Streak 17 | 8 10 17 Robot Miss Streak 4 | 3 4 3 Penetration Max . | . . . Secondary Targets 2 | . 2 . Max Gunslinging Chain 1 | . 1 . Shots Hit Robots 114 | 30 47 37 Core Hits 44 | 7 25 12 Critical Kills . | . . . Critical Parts Destroyed . | . . . Critical Strikes 4 | 2 1 1 Burn 3 | 2 1 . Blast 1 | . . 1 Melee Attacks . | . . . Impact . | . . . Slashing . | . . . Piercing . | . . . Sneak Attacks . | . . . Combat Hostiles . | . . . Follow-up Attacks . | . . . Damage Inflicted 1999 | 367 906 726 Guns 1453 | 367 714 372 Cannons 313 | . . 313 Explosions 233 | . 192 41 Melee . | . . . Ramming . | . . . Kinetic 830 | 203 101 526 Thermal 510 | 164 305 41 Explosive . | . . . Electromagnetic 659 | . 500 159 Impact . | . . . Slashing . | . . . Piercing . | . . . Highest Corruption . | . . . Average Corruption . | . . . Corruption Purged . | . . . Corruption Blocked . | . . . Overload Shots . | . . . Overflow Damage 16 | . 16 . Projectiles . | . . . Explosions 16 | . 16 . Melee . | . . . Knockbacks 6 | . . 6 Impact . | . . . Kinetic 6 | . . 6 Secondary . | . . . Self-Inflicted Damage 129 | . 119 10 Shots 4 | . 3 1 Rammed . | . . . Targets Rammed . | . . . Kicked . | . . . Crushed . | . . . Highest Temperature 177 | 117 177 8 Average Temperature 58 | 48 64 5 Received Heat Transfer 381 | . 204 177 Siege Activations . | . . . Martial Activations . | . . . Shielding Activations . | . . . Robots Disrupted . | . . . Combat Hostiles . | . . . Robots Corrupted 1 | . 1 . Combat Hostiles 1 | . 1 . Parts Fried 2 | . 2 . Impact Corruptions . | . . . Robots Melted . | . . . Combat Hostiles . | . . . Parts Melted 5 | 4 . 1 Heat Transferred 1386 | 629 707 50 Parts Sabotaged . | . . . Parts Stolen . | . . . Parts Stripped . | . . . Power Chain Reactions 5 | . 4 1 Alert | -11 -10 -10 ------- Run | Yrd Mat Sub Maximum Alert Level . | . . . Low Security (%) 100 | 100 100 . Level 1 . | . . . Level 2 . | . . . Level 3 . | . . . Level 4 . | . . . Level 5 . | . . . High Security . | . . . Max Security . | . . . Peak Influence 150 | 10 150 . Initial . | . . . Average 66 | 2 80 . Influence Increases 499 | 30 414 55 Destroy 0b10 Robot/C 280 | . 240 40 Destroy 0b10 Robot/NC 55 | 30 25 . Destroy Leader 50 | . 50 . Disable Machine 15 | . 15 . Destroy Structure 24 | . 24 . Lose Combat Pursuer 75 | . 60 15 Influence Decreases 462 | 30 296 136 Entered New Map 58 | . . 58 Time Decay 324 | 30 246 48 Lost Part 80 | . 50 30 Squads Dispatched 2 | . 2 . Investigation 1 | . 1 . Extermination . | . . . Reinforcement 1 | . 1 . Assault . | . . . Garrison . | . . . Intercept . | . . . Searches Triggered . | . . . Construction Impeded . | . . . Haulers Reinforced . | . . . Active Scanning Responses . | . . . Cargo Convoy Interrupts . | . . . Stealth | -11 -10 -10 --------- Run | Yrd Mat Sub Distress Signals 1 | . 1 . Communications Jammed . | . . . Distress Signals . | . . . Times Spotted 26 | . 18 8 Peak Tracking Total 4 | . 4 3 Tactical Retreats 4 | . 3 1 Traps | -11 -10 -10 ------- Run | Yrd Mat Sub Traps Triggered 1 | . 1 . Indirectly . | . . . Trap Hack Attempts . | . . . Triggered . | . . . Disarmed . | . . . Reprogrammed . | . . . Reused . | . . . Traps Extracted . | . . . Installed . | . . . Triggered . | . . . Machines | -11 -10 -10 ---------- Run | Yrd Mat Sub Machines Disabled 2 | . 1 1 Max in Single Turn 1 | . 1 1 Machines Repaired . | . . . Machines Dismantled . | . . . Machines Sabotaged . | . . . Overloaded Fab Kills . | . . . Hacking | -11 -10 -10 --------- Run | Yrd Mat Sub Machines Accessed 1 | . . 1 Terminals . | . . . Fabricators . | . . . Repair Stations . | . . . Recycling Units . | . . . Scanalyzers . | . . . Garrison Access . | . . . Total Hacks 1 | . . 1 Successful 1 | . . 1 Failed . | . . . Catastrophic . | . . . Database Lockouts . | . . . Manual . | . . . Terminals . | . . . Fabricators . | . . . Repair Stations . | . . . Recycling Units . | . . . Scanalyzers . | . . . Garrison Access . | . . . Terminal Hacks 1 | . . 1 Proto ID Catalog 1 | . . 1 Fabricator Hacks . | . . . Repair Station Hacks . | . . . Recycling Unit Hacks . | . . . Scanalyzer . | . . . Garrison Access Hacks . | . . . Unauthorized Hacks . | . . . Terminals . | . . . Fabricators . | . . . Repair Stations . | . . . Recycling Units . | . . . Scanalyzers . | . . . Garrison Access . | . . . Data Cores Recovered . | . . . Used . | . . . Hacking Detections . | . . . Full Trace Events . | . . . Feedback Events . | . . . Feedback Blocked . | . . . Robot Schematics Acquired . | . . . Robots Built . | . . . Authchips . | . . . Time . | . . . Total Robot Build Rating . | . . . Part Schematics Acquired . | . . . Parts Built . | . . . Authchips . | . . . Time . | . . . Total Part Build Rating . | . . . Part Studies Acquired . | . . . Parts Repaired . | . . . Time . | . . . Parts Recycled . | . . . Recycled Matter . | . . . Retrieved Matter . | . . . Retrieved Components . | . . . Parts Scanalyzed . | . . . Part Schematics Acquired . | . . . Parts Damaged . | . . . Bothacking | -11 -10 -10 ------------ Run | Yrd Mat Sub Used RIF Installer . | . . . Robots Hacked . | . . . Non-combat . | . . . Combat . | . . . Robot Hacks Applied . | . . . Relay Couplers Released . | . . . Fabnet Peak Effective % . | . . . Robots Rewired . | . . . Allies Hacked . | . . . Hacks Repelled . | . . . Allies | -11 -10 -10 -------- Run | Yrd Mat Sub Total Allies . | . . . Largest Group . | . . . Highest-Rated Group . | . . . Highest-Rated Ally . | . . . Total Orders . | . . . Ally Attacks . | . . . Total Damage . | . . . Kills . | . . . Allies Corrupted . | . . . Allies Melted . | . . . Intel | -11 -10 -10 ------- Run | Yrd Mat Sub Active Infowar (turns) 628 | . . 628 Structural 628 | . . 628 Robot Analysis Total . | . . . Derelict Logs Recovered . | . . . Drone Launches . | . . . Drone Recoveries . | . . . Exploration | -11 -10 -10 ------------- Run | Yrd Mat Sub Turns Passed 1287 | 121 537 629 Spaces Moved 891 | 48 346 497 Core . | . . . Treads . | . . . Legs . | . . . Wheels 891 | 48 346 497 Hover . | . . . Flight . | . . . Fastest Speed 80 | 90 80 95 Average Speed 92 | 90 88 95 Slowest Speed 95 | 90 95 95 Overloaded Moves . | . . . Propulsion Burnouts . | . . . Robots Hopped . | . . . Potential Cave-ins . | . . . Cave-ins Triggered . | . . . Exploration Rate (%) 34 | 3 63 38 Regions Visited 2 Branch Regions 1 Pre-discovered Areas . | . . . Known Exits Taken . | . . . Unknown Exits Taken 2 | 1 1 . Scrap Searched 5 | . . 5 Spaces Dug . | . . . Terrain Destroyed 24 | . 21 3 Melee . | . . . Projectile . | . . . AOE 24 | . 21 3 Terrain Rammed . | . . . Walls Destroyed . | . . . Machines Disabled . | . . . Actions | -11 -10 -10 --------- Run | Yrd Mat Sub Total 1189 | 84 515 590 Wait 165 | . 121 44 Move 889 | 47 345 497 Hop . | . . . Pick Up 16 | 7 6 3 Fast Attach 5 | . 3 2 Attach 10 | 2 4 4 Detach 1 | . . 1 Swap 5 | . 2 3 Drop 11 | 6 4 1 Fire 87 | 22 30 35 Melee . | . . . Ram . | . . . Kick . | . . . Crush . | . . . Escape Stasis . | . . . Rewire . | . . . Trap . | . . . Miscellaneous . | . . . Route ------- -11/Scrapyard -10/Materials (discovered 3 exits: [*Mat x2] / *Sub) -10/Subcaves History --------- Turn | Location | Event 24 | -11/Scrapyard | Discovered new exit (range 1) 122 | -11/Scrapyard | Entered Materials 274 | -10/Materials | Discovered new exit (range 4) 302 | -10/Materials | Build established: Mutant 383 | -10/Materials | Discovered new exit (range 15) 649 | -10/Materials | Discovered new exit (range 9) 659 | -10/Materials | Entered Subcaves 660 | -10/Subcaves | Approached by a straggling Scientist 772 | -10/Subcaves | Core integrity fell below 50% 990 | -10/Subcaves | Visited 4L-MR0's lab 1010 | -10/Subcaves | Found Powered Cannon 1051 | -10/Subcaves | A swath of the cavern ceiling suddenly collapsed 1262 | -10/Subcaves | Core integrity fell below 20% 1288 | -10/Subcaves | Destroyed by G-34 Mercenary with Small Laser Last Messages --------------- come in here given their fear of my usual visitors." 01023_ Sub. Power Source shoots sparks and powers down. 01023_ Acquired 8 matter. 01033_ Searching scrap... 01033_ Found Battle Rifle. 01033_ Found 57 Matter. A swath of the cavern ceiling suddenly collapses. 01195_ Acquired 18 matter. 01265_ S-10 Pest knocked back. 01268_ S-10 Pest destroyed. 01268_ G-34 Mercenary knocked back. 01272_ Critical hit (Burn: +37). 01274_ Destroyed Heat Sink. 01276_ Flight Unit fries itself beyond repair. 01278_ Critical hit (Burn: +37). 01280_ Y-45 Defender Beam Rifle blasted off. 01282_ Lgt. Assault Rifle fries itself beyond repair. 01283_ Destroyed Lgt. Armor Plating. 01283_ Y-45 Defender destroyed. 01286_ Wheel destroyed. Map ----- +----------------------------------------------------+ | ### ##### ####?????????????????????????????????? | | #### ###??????????????????????????????????? | | #### ##???????????????????????????????????? | | ### ###??????????????????????????????????? | | ###??????????????????????????????????? | | # ##??????????????????????????????????? | | ## ##??????????????????????????????????? | | ######## ##??????????????????????????????????? | | ######## ##??????????????????????????????????? | | ######## ##??????????????????????????????????? | | ######### ###??????????????????????????????????? | | #### ###??????????????????????????????????? | | ### ####?????????????????????????????????? | | ### ###?????????????######??????????????? | | ### ###?????##############?????????????? | | ### ################# ### ????????????? | | ###### ######### #### ## ????????????? | | ####### ### ##????????????? | | ###?### ####????????????? | | ###?## ### ###??????????????? | | ######### ### ######??????????????? | | ######### # # #### ######???????????????? | | ####### # # #### ######????????????????? | | ####### # # #### ### ##????????????????? | | # ## ######### ## ##????????????????? | | #########@% % ##????????????????? | | ####?????### % ##????????????????? | | # ######????? ## g ##????????????????? | | ### ### *[ ####???????### % ##????????????????? | | ####### "%! # ????????## ##????????????????? | | #######""" ??????? #####????????????????? | | ?????##""" ??? #######????????????????? | | ?????##""" ### #### ???????????????????? | | ?????##""" ### ###??????????????????????? | | ?????## #####?? ##???????????????????????? | | ????????? #####?? ## ?????????????????????????? | | ???????????????? ### ??????????????????????????? | | ????????????????##### ??????????????????????????? | | ????????????????##### ???????????????????????????? | | ???????????????????# ???????????????????????????? | | ?????????????????????????????????????????????????? | | ?????????????????????????????????????????????????? | | ?????????????????????????????????????????????????? | | ?????????????????????????????????????????????????? | | ?????????????????????????????????????????????????? | | ?????????????????????????????????????????????????? | | ?????????????????????????????????????????????????? | | ?????????????????????????????????????????????????? | | ?????????????????????????????????????????????????? | | ?????????????????????????????????????????????????? | +----------------------------------------------------+ Best States ------------- Heat Dissipation 25 Energy Generation 15 Energy Capacity 200 Matter Stores 300 Matter Capacity 300 Sight Range 16 Terrain Scan Density 10 Evasion (%) 44 Targeting Accuracy 5 Item Schematics ----------------- None Robot Schematics ------------------ None Fabricated ------------ Nothing Repaired ---------- Nothing Studied --------- None Alien Tech Used ----------------- None Achievements -------------- None Challenges ------------ None Game ------ Seed ParticleHackingAirjet Manual? 0 Play Time 00:14:04 Cumulative 129.1 hours Start 2025.10.26 @ 13:01:51 End 2025.10.26 @ 13:13:47 Sessions 1 Manual Loads 0 Difficulty Rogue Special Mode None Game No. 129 Rogue 129 Adventurer 0 Explorer 0 Win Type - Total 1 Types 1/0/0/0/0/0/0/0/0/0 Lore% 61 Gallery% 51 Achievement% 35 Wizard Run 0 Options --------- Layout 0 ASCII 0 Keyboard 0 Movement Mouse Keybinds 0 Fullscreen 2 Font 18/X11 Map View 76x50 Zoom Use 6% Tactical HUD 1 Map Filters NONE Filters NONE Steam 1 RUN: 1cc6f92d-1115-42b2-8c92-b12c3ec42e09